fUSD/lending_fUSD_20240404
["ID","MTS","AMOUNT","RATE_DAILY","PERIOD"]
[321478650,1712224243828,-362.48598445,0.00037261,7]
[321478651,1712224243839,-504.21999139,0.00037271,7]
[321478652,1712224243848,-150.0,0.00037306,2]
[321478653,1712224243857,-180.0,0.00037321,2]
[321478654,1712224243866,-150.0,0.00037345,2]
[321478655,1712224243875,-150.0,0.00037385,2]
[321478656,1712224243884,-191.71183903,0.00037427,7]
[321478657,1712224243893,-150.0,0.00037477,2]
[321478659,1712224243903,-150.0,0.00037503,2]
[321478661,1712224243912,-150.0,0.0003751,2]
[321478663,1712224243921,-150.0,0.00037646,2]
[321478664,1712224243930,-150.0,0.00037707,2]
[321478667,1712224243940,-153.86698454,0.00037771,7]
[321478668,1712224243949,-191.71183903,0.0003778,7]
[321478669,1712224243958,-504.21999139,0.00037802,7]
[321478670,1712224243967,-150.0,0.00037805,2]
[321478671,1712224243977,-150.0,0.00037845,2]
[321478672,1712224243986,-150.0,0.00037949,2]
[321478673,1712224243995,-362.48598445,0.00037965,7]
[321478674,1712224244009,-150.0,0.00037986,2]
[321478675,1712224244018,-150.0,0.00038023,2]
[321478676,1712224244028,-1185.56,0.00038027,15]
[321478677,1712224244037,-150.0,0.0003807,2]
[321478678,1712224244048,-150.0,0.00038135,2]
[321478679,1712224244058,-504.21999139,0.00038154,7]
[321478680,1712224244067,-167.52558322,0.00038188,7]
[321478681,1712224244076,-150.0,0.00038288,2]
[321478682,1712224244087,-150.0,0.00038292,2]
[321478683,1712224244096,-150.0,0.00038334,2]
[321478684,1712224244106,-4322.39668253,0.00038403,2]
[321478685,1712224244115,-153.86698454,0.00038425,7]
[321478686,1712224244125,-1208.0,0.00038442,5]
[321478687,1712224244134,-191.71183903,0.0003847,7]
[321478688,1712224244144,-150.0,0.00038483,2]
[321478689,1712224244153,-490.11815053,0.000385,4]
[321478690,1712224244164,-276.39356823,0.000385,2]
[321478691,1712224244181,-723.60643177,0.000385,2]
[321478692,1712224244191,-362.48598445,0.00038503,7]
[321478693,1712224244202,-191.71183903,0.00038504,7]
[321478694,1712224244213,-164.17924986,0.00038507,7]
[321478695,1712224244223,-150.0,0.00038508,2]
[321478696,1712224244233,-150.0,0.00038508,2]
[321478697,1712224244242,-526.0,0.0003855,2]
[321478698,1712224244252,-150.0,0.00038555,2]
[321478699,1712224244261,-961.84129582,0.00038556,2]
[321478700,1712224244385,-38.15870418,0.00038556,2]
[321478701,1712224244395,-176.64,0.0003857,2]
[321478702,1712224244405,-150.0,0.00038616,2]
[321478703,1712224244414,-362.48598445,0.00038637,7]
[321478704,1712224244423,-150.0,0.00038681,2]
[321478705,1712224244433,-1000.0,0.000387,2]
[321478706,1712224244443,-158.93421436,0.00038728,7]
[321478707,1712224244452,-150.0,0.00038751,2]
[321478708,1712224244461,-150.0,0.0003877,2]
[321478709,1712224244470,-150.0,0.00038786,2]
[321478710,1712224244480,-1123.38592293,0.000388,2]
[321478711,1712224244499,-1828.76188994,0.000388,2]
[321478712,1712224244509,-1792.5696,0.000388,2]
[321478713,1712224244518,-152.36417667,0.00038816,7]
[321478714,1712224244527,-504.21999139,0.00038868,7]
[321478715,1712224244537,-150.0,0.00038878,2]
[321478716,1712224244546,-267.41,0.0003889,2]
[321478717,1712224244556,-1131.4579,0.000389,2]
[321478718,1712224244566,-33800.1539,0.000389,2]
[321478719,1712224244576,-55316.404,0.000389,2]
[321478720,1712224244587,-1000.0,0.000389,2]
[321478721,1712224244597,-1211.0,0.00039,4]
[321478722,1712224244606,-181.45176696,0.00039,5]
[321478723,1712224244616,-1150.0,0.00039,3]
[321478724,1712224244625,-1000.0,0.00039,2]
[321478725,1712224244635,-504.21999139,0.00039005,7]
[321478726,1712224244645,-1000.0,0.000391,3]
[321478727,1712224244654,-150.0,0.00039101,2]
[321478728,1712224244663,-150.0,0.00039121,2]
[321478729,1712224244672,-154.06850799,0.00039122,7]
[321478730,1712224244682,-155.23056862,0.0003913,7]
[321478731,1712224244691,-150.0,0.00039172,2]
[321478732,1712224244700,-1000.0,0.000392,3]
[321478733,1712224244710,-1000.0,0.000392,7]
[321478734,1712224244719,-1465.8042184,0.00039218,2]
[321478735,1712224244728,-150.0,0.00039233,2]
[321478736,1712224244737,-150.0,0.00039234,2]
[321478737,1712224244747,-150.0,0.00039235,2]
[321478738,1712224244756,-150.0,0.00039239,2]
[321478739,1712224244765,-504.21999139,0.00039253,7]
[321478740,1712224244774,-1000.0,0.000393,2]
[321478741,1712224244784,-153.8747005,0.00039334,7]
[321478742,1712224244793,-150.0,0.00039337,2]
[321478743,1712224244803,-154.06850799,0.0003935,7]
[321478744,1712224244813,-265.05469207,0.00039355,7]
[321478745,1712224244825,-153.8747005,0.00039361,7]
[321478746,1712224244834,-150.0,0.00039387,2]
[321478747,1712224244844,-500.0,0.000394,2]
[321478748,1712224244854,-150.0,0.00039434,2]
[321478749,1712224244865,-150.0,0.00039456,2]
[321478750,1712224244874,-150.0,0.00039459,2]
[321478751,1712224244883,-155.54109467,0.00039459,7]
[321478752,1712224244893,-150.0,0.00039463,2]
[321478753,1712224244902,-153.31224415,0.00039505,7]
[321478754,1712224244912,-554.53127271,0.00039513,11]
[321478755,1712224244921,-1000.0,0.00039515,2]
[321478756,1712224244931,-1955.5726,0.00039518,2]
[321478757,1712224244940,-4322.39668245,0.00039564,2]
[321478758,1712224244950,-1006.2972741,0.0003957,2]
[321478759,1712224244959,-191.71183903,0.00039592,7]
[321478760,1712224244968,-622.87,0.00039597,2]
[321478761,1712224244978,-150.0,0.00039598,2]
[321478762,1712224244988,-1033.24667424,0.000396,30]
[321478763,1712224244997,-265.05469207,0.000396,7]
[321478764,1712224245007,-1012.96,0.000396,2]
[321478765,1712224245016,-306.82,0.000396,2]
[321478766,1712224245026,-216.25147552,0.00039603,2]
[321478767,1712224245035,-267.41,0.00039603,2]
[321478768,1712224245046,-267.41,0.00039603,2]
[321478769,1712224245055,-517.97,0.00039603,2]
[321478770,1712224245065,-517.97,0.00039603,2]
[321478771,1712224245075,-172.18,0.00039612,2]
[321478772,1712224245084,-172.18,0.00039612,2]
[321478773,1712224245094,-172.18,0.00039612,2]
[321478774,1712224245104,-172.18,0.00039612,2]
[321478775,1712224245113,-366.26637804,0.00039613,4]
[321478776,1712224245122,-200.0,0.00039613,2]
[321478777,1712224245132,-155.0,0.00039613,2]
[321478778,1712224245142,-1600.45488383,0.00039613,5]
[321478779,1712224245154,-124199.31243699,0.00039613,20]
[321478780,1712224245166,-547.59726249,0.00039613,2]
[321478781,1712224245176,-150.0,0.00039613,2]
[321478782,1712224245185,-635.08382378,0.00039613,2]
[321478783,1712224245195,-609.13045787,0.00039613,2]
[321478784,1712224245205,-208.86253145,0.00039613,2]
[321478785,1712224245214,-16627.582021,0.00039613,7]
[321478786,1712224245223,-437.00427402,0.00039613,2]
[321478787,1712224245232,-563.43145373,0.00039613,2]
[321478788,1712224245242,-234.07386978,0.00039613,2]
[321478789,1712224245251,-524.15022582,0.00039613,2]
[321478790,1712224245261,-887.3352409,0.00039613,2]
[321478791,1712224245270,-468.27988177,0.00039613,2]
[321478792,1712224245279,-384.84017058,0.00039613,2]
[321478793,1712224245289,-240.34106936,0.00039613,2]
[321478794,1712224245298,-8723.64002819,0.00039613,14]
[321478795,1712224245308,-316.75387914,0.00039613,2]
[321478796,1712224245318,-532.61463632,0.00039613,2]
[321478797,1712224245328,-1510.61615412,0.00039613,7]
[321478798,1712224245337,-526.74600646,0.00039613,5]
[321478799,1712224245346,-354.30280344,0.00039613,2]
[321478800,1712224245355,-592.27813173,0.00039613,2]
[321478801,1712224245364,-52681.75944468,0.00039613,7]
[321478802,1712224245373,-34913.5243912,0.00039613,2]
[321478803,1712224245383,-138166.63296207,0.00039613,2]
[321478804,1712224245392,-155.65428088,0.00039613,2]
[321478805,1712224245402,-18964.28991064,0.00039613,3]
[321478806,1712224245411,-3838.47354742,0.00039613,3]
[321478807,1712224245421,-337.43452704,0.00039613,2]
[321478808,1712224245430,-771.11898055,0.00039613,20]
[321478809,1712224245440,-407.0,0.00039613,2]
[321478810,1712224245449,-214.12746738,0.00039613,2]
[321478811,1712224245458,-150.0,0.00039613,2]
[321478812,1712224245467,-150.0,0.00039613,2]
[321478813,1712224245477,-200.0,0.00039613,2]
[321478814,1712224245487,-158.79662838,0.00039613,2]
[321478815,1712224245496,-1405.13653441,0.00039613,2]
[321478816,1712224245506,-703.55148282,0.00039613,2]
[321478817,1712224245515,-1713.22894681,0.00039613,2]
[321478818,1712224245525,-5000.0,0.00039613,7]
[321478819,1712224245534,-2782.22220325,0.00039613,2]
[321478820,1712224245543,-250.0,0.00039613,17]
[321478821,1712224245553,-1992.45292441,0.00039613,4]
[321478822,1712224245562,-2006.59486654,0.00039613,7]
[321478823,1712224245572,-9252.17352754,0.00039613,2]
[321478824,1712224245582,-1261.62191336,0.00039616,15]
[321478825,1712224245592,-3040.17328181,0.00039616,4]
[321478826,1712224245602,-2833.80873751,0.00039616,4]
[321478827,1712224245612,-6129.82886569,0.00039616,4]
[321478828,1712224245621,-166.81148,0.00039617,2]
[321478829,1712224245631,-1066.35028848,0.00039617,4]
[321478830,1712224245641,-157.02170061,0.00039617,4]
[321478831,1712224245651,-2820.22445287,0.00039617,4]
[321478832,1712224245661,-157.27382018,0.00039617,4]
[321478833,1712224245672,-200.0,0.00039618,2]
[321478834,1712224245682,-150.0,0.00039624,2]
[321478835,1712224245693,-158.93421436,0.0003964,7]
[321478836,1712224245704,-150.0,0.00039657,2]
[321478837,1712224245715,-200.0,0.00039657,15]
[321478838,1712224245726,-200.0,0.00039658,15]
[321478839,1712224245737,-500.0,0.00039658,20]
[321478840,1712224245747,-116.72198364,0.00039669,2]
[321478841,1712224245756,-150.0,0.0003968,2]
[321478842,1712224245766,-150.0,0.00039687,2]
[321478844,1712224245775,-150.0,0.00039689,2]
[321478845,1712224245784,-150.0,0.00039693,2]
[321478846,1712224245794,-150.0,0.00039695,2]
[321478847,1712224245804,-150.0,0.00039697,2]
[321478848,1712224245817,-150.0,0.00039703,2]
[321478849,1712224245829,-150.0,0.00039703,2]
[321478850,1712224245840,-150.0,0.00039708,2]
[321478851,1712224245850,-265.05469207,0.00039716,7]
[321478852,1712224245860,-150.0,0.00039719,2]
[321478853,1712224245870,-153.45332323,0.00039719,7]
[321478854,1712224245880,-150.0,0.00039727,2]
[321478855,1712224245890,-153.8747005,0.00039729,7]
[321478857,1712224245901,-150.0,0.0003973,2]
[321478858,1712224245911,-150.0,0.0003973,2]
[321478859,1712224245922,-191.71183903,0.00039731,7]
[321478860,1712224245932,-150.0,0.00039732,2]
[321478861,1712224245942,-150.0,0.00039735,2]
[321478862,1712224245952,-150.0,0.00039736,2]
[321478863,1712224245962,-150.0,0.00039737,2]
[321478864,1712224245971,-150.0,0.00039738,2]
[321478865,1712224245980,-150.0,0.0003974,2]
[321478866,1712224245990,-150.0,0.00039742,2]
[321478867,1712224246002,-150.0,0.0003975,2]
[321478868,1712224246011,-150.0,0.00039754,2]
[321478869,1712224246021,-150.0,0.00039756,2]
[321478870,1712224246030,-150.0,0.00039761,2]
[321478871,1712224246041,-150.0,0.00039763,2]
[321478872,1712224246052,-150.0,0.00039768,2]
[321478873,1712224246063,-1465.80421841,0.00039773,2]
[321478874,1712224246072,-150.0,0.00039776,2]
[321478875,1712224246081,-150.0,0.00039782,2]
[321478876,1712224246092,-150.0,0.00039786,2]
[321478877,1712224246102,-150.0,0.0003979,2]
[321478878,1712224246111,-150.0,0.00039793,2]
[321478879,1712224246123,-150.0,0.000398,2]
[321478880,1712224246132,-150.0,0.000398,2]
[321478881,1712224246142,-150.0,0.00039801,2]
[321478882,1712224246151,-150.0,0.00039808,2]
[321478883,1712224246161,-150.0,0.00039818,2]
[321478884,1712224246172,-150.0,0.0003982,2]
[321478885,1712224246181,-150.0,0.00039826,2]
[321478886,1712224246191,-150.0,0.00039828,2]
[321478887,1712224246201,-150.0,0.00039833,2]
[321478888,1712224246210,-150.0,0.00039837,2]
[321478889,1712224246220,-150.0,0.00039853,2]
[321478890,1712224246229,-517.97,0.00039855,2]
[321478891,1712224246239,-150.0,0.00039858,2]
[321478892,1712224246249,-150.0,0.00039865,2]
[321478893,1712224246260,-150.0,0.00039866,2]
[321478894,1712224246269,-150.0,0.00039869,2]
[321478895,1712224246279,-150.0,0.0003987,2]
[321478896,1712224246288,-150.0,0.00039871,2]
[321478907,1712224246560,-150.0,0.00039883,2]
[321478909,1712224246570,-7500.0,0.000399,2]
[321478911,1712224246581,-480.0,0.000399,26]
[321478913,1712224246592,-150.0,0.000399,24]
[321478914,1712224246602,-403.0,0.000399,15]
[321478915,1712224246612,-851.43227139,0.000399,13]
[321478916,1712224246621,-182.91282882,0.000399,13]
[321478917,1712224246630,-9589.6215,0.000399,2]
[321478918,1712224246640,-198.35447971,0.000399,2]
[321478919,1712224246649,-150.0,0.00039903,2]
[321478920,1712224246658,-150.0,0.00039908,2]
[321478921,1712224246667,-150.0,0.0003991,2]
[321478922,1712224246677,-150.0,0.00039914,2]
[321478923,1712224246687,-150.0,0.00039918,2]
[321478924,1712224246696,-150.0,0.00039933,2]
[321478925,1712224246706,-150.0,0.00039939,2]
[321478926,1712224246715,-265.05469207,0.00039951,7]
[321478927,1712224246724,-267.41,0.00039959,2]
[321478928,1712224246734,-517.97,0.00039959,2]
[321478929,1712224246743,-155.97526314,0.00039968,4]
[321478930,1712224246753,-200.0,0.00039968,7]
[321478931,1712224246762,-3766.91886495,0.00039969,2]
[321478932,1712224246771,-930.69999968,0.00039969,4]
[321478933,1712224246780,-298.8763417,0.00039969,2]
[321478934,1712224246789,-101445.69381,0.00039969,2]
[321478935,1712224246799,-7979.3694012,0.00039969,2]
[321478936,1712224246808,-1926.3345064,0.00039969,2]
[321478937,1712224246818,-2560.335237,0.0003997,30]
[321478938,1712224246831,-1000.0,0.0003997,2]
[321478939,1712224246841,-3464.316465,0.0003997,2]
[321478940,1712224246850,-725.1578419,0.0003997,2]
[321478941,1712224246859,-644.39209935,0.00039977,2]
[321478942,1712224246870,-504.94012605,0.00039981,2]
[321478943,1712224246878,-267.41,0.0003999,2]
[321478944,1712224246888,-267.41,0.0003999,2]
[321478945,1712224246898,-267.41,0.0003999,2]
[321478946,1712224246908,-267.41,0.0003999,2]
[321478947,1712224246917,-267.41,0.0003999,2]
[321478948,1712224246927,-267.41,0.0003999,2]
[321478949,1712224246937,-517.97,0.0003999,2]
[321478950,1712224246946,-17193.68386524,0.00039997,2]
[321478951,1712224246955,-417.98042323,0.00039999,31]
[321478952,1712224246964,-586640.17884362,0.00039999,9]
[321478953,1712224246978,-35573.43476424,0.00039999,9]
[321478954,1712224247007,-1054.47713702,0.00039999,9]
[321478955,1712224247019,-27576.65562011,0.00039999,9]
[321478956,1712224247042,-15224.90323044,0.00039999,9]
[321478957,1712224247053,-3343.6,0.00039999,9]
[321478958,1712224248021,-150.0,0.00035339,2]
[321478959,1712224248032,-150.0,0.00035851,2]
[321478960,1712224248041,-150.0,0.00035899,2]
[321478961,1712224248050,-14.50998446,0.00036369,2]
[321478962,1712224248081,-135.49001554,0.00036369,2]
[321478963,1712224248093,-150.0,0.00036785,2]
[321478964,1712224248101,-44.81998446,0.00037172,2]
[321478965,1712224248128,-105.18001554,0.00037172,2]
[321478966,1712224248137,-150.0,0.00037273,2]
[321478967,1712224248147,-150.0,0.0003739,2]
[321478968,1712224248156,-150.0,0.00037428,2]
[321478969,1712224248165,-150.0,0.00037545,2]
[321478970,1712224248174,-150.0,0.00037569,2]
[321478971,1712224248183,-150.0,0.00037626,2]
[321478972,1712224248193,-150.0,0.00037946,2]
[321478973,1712224248202,-150.0,0.00037958,2]
[321478974,1712224248211,-150.0,0.00038238,2]
[321478975,1712224248220,-150.0,0.00038544,2]
[321478976,1712224248229,-150.0,0.0003864,2]
[321478977,1712224248238,-150.0,0.00038674,2]
[321478978,1712224248247,-150.0,0.00038879,2]
[321478979,1712224248256,-150.0,0.00038941,2]
[321478980,1712224248265,-150.0,0.00039137,2]
[321478981,1712224248275,-150.0,0.0003928,2]
[321478982,1712224248284,-150.0,0.00039496,2]
[321478983,1712224248293,-150.0,0.000395,2]
[321478984,1712224248302,-150.0,0.00039628,2]
[321478985,1712224248312,-150.0,0.0003963,2]
[321478986,1712224248321,-150.0,0.00039633,2]
[321478987,1712224248330,-150.0,0.0003964,2]
[321478988,1712224248340,-150.0,0.0003965,2]
[321478989,1712224248350,-150.0,0.00039653,2]
[321478990,1712224248359,-150.0,0.00039656,2]
[321478991,1712224248369,-150.0,0.00039664,2]
[321478992,1712224248378,-150.0,0.00039669,2]
[321478993,1712224248387,-150.0,0.00039689,2]
[321478994,1712224248396,-150.0,0.00039699,2]
[321478995,1712224248406,-150.0,0.00039704,2]
[321478996,1712224248415,-150.0,0.00039708,2]
[321478997,1712224248425,-150.0,0.0003972,2]
[321478998,1712224248434,-150.0,0.00039727,2]
[321478999,1712224248443,-150.0,0.00039728,2]
[321479000,1712224248453,-150.0,0.00039733,2]
[321479001,1712224248462,-150.0,0.00039748,2]
[321479002,1712224248471,-150.0,0.00039753,2]
[321479003,1712224248481,-150.0,0.00039761,2]
[321479004,1712224248491,-150.0,0.00039766,2]
[321479005,1712224248502,-150.0,0.00039774,2]
[321479006,1712224248512,-150.0,0.00039784,2]
[321479007,1712224248522,-150.0,0.00039797,2]
[321479008,1712224248532,-150.0,0.00039798,2]
[321479009,1712224248542,-150.0,0.00039813,2]
[321479010,1712224248551,-150.0,0.00039814,2]
[321479011,1712224248560,-150.0,0.00039825,2]
[321479012,1712224248570,-150.0,0.00039826,2]
[321479013,1712224248579,-150.0,0.00039826,2]
[321479014,1712224248592,-150.0,0.00039832,2]
[321479015,1712224248601,-150.0,0.00039833,2]
[321479016,1712224248610,-150.0,0.00039867,2]
[321479017,1712224248620,-150.0,0.00039869,2]
[321479018,1712224248630,-150.0,0.00039872,2]
[321479019,1712224248640,-150.0,0.00039875,2]
[321479020,1712224248651,-150.0,0.00039875,2]
[321479021,1712224248662,-150.0,0.00039882,2]
[321479022,1712224248673,-150.0,0.00039888,2]
[321479023,1712224248683,-29240.48122612,0.00039999,9]
[321479024,1712224260191,153.26124681,0.0002,5]
[321479025,1712224282070,150.0,0.00029,10]
[321479026,1712224315020,25000.0,0.00039613,30]
[321479027,1712224341232,25000.0,0.00039613,30]
[321479047,1712224496105,-312.4020961,0.00022498,2]
[321479048,1712224496148,-221.6811328,0.00022498,2]
[321479049,1712224496192,-389.92773381,0.00022498,2]
[321479050,1712224496227,-157.96362045,0.00022499,2]
[321479051,1712224496264,-823.2356,0.00024799,2]
[321479052,1712224496299,-19469.99575774,0.000249,2]
[321479053,1712224496337,-643.18171174,0.000249,2]
[321479054,1712224496367,-312.4020961,0.000249,2]
[321479055,1712224496379,-221.6811328,0.000249,2]
[321479056,1712224496970,-389.92773381,0.000249,2]
[321479057,1712224497019,-157.96362045,0.000249,2]
[321479058,1712224497047,-823.2356,0.000249,2]
[321479059,1712224497059,-16351.16018329,0.000249,2]
[321479060,1712224497077,-643.18171174,0.000249,2]
[321479061,1712224497088,-4082.06026917,0.000249,2]
[321479062,1712224536839,25000.0,0.00039613,30]
[321479063,1712224573639,25000.0,0.00039621,30]
[321479064,1712224584869,25000.0,0.00039621,30]
[321479067,1712224622822,25000.0,0.00039621,30]
[321479068,1712224654281,25000.0,0.00039621,30]
[321479069,1712224674974,25000.0,0.00039621,30]
[321479070,1712224724148,25000.0,0.00039894,30]
[321479071,1712224734868,8928.03835424,0.00039894,30]
[321479072,1712225040772,10000.0,0.00029,10]
[321479073,1712225049818,15000.0,0.00029,10]
[321479074,1712225078980,25000.0,0.00029,10]
[321479075,1712225121972,25000.0,0.00029,10]
[321479076,1712225149210,-844.34598028,0.00024779,2]
[321479077,1712225149230,-427.95988549,0.0002478,2]
[321479078,1712225149250,-312.4020961,0.00024799,2]
[321479079,1712225149269,-153.19616599,0.000248,2]
[321479080,1712225149289,-2267.09717702,0.000249,2]
[321479081,1712225153166,750.0,0.00023,3]
[321479082,1712225157603,25000.0,0.00029,10]
[321479083,1712225188390,25000.0,0.00029,10]
[321479087,1712225234221,-315.85419358,0.0002489,2]
[321479097,1712225383370,25000.0,0.00029,10]
[321479098,1712225393836,25000.0,0.00029,10]
[321479103,1712225411560,25000.0,0.00029,10]
[321479111,1712225432090,-700.49040338,0.00024672,2]
[321479149,1712225438753,-78.39870845,0.00024672,2]
[321479150,1712225438766,-312.4020961,0.00024673,2]
[321479151,1712225438777,-844.34598028,0.00024674,2]
[321479152,1712225438789,-844.02242741,0.00024675,2]
[321479153,1712225438856,-335.97757259,0.00024675,2]
[321479154,1712225438869,-439.46703767,0.00024677,2]
[321479155,1712225438919,-5742.80300583,0.00024677,2]
[321479156,1712225438931,-271.2908,0.00024679,2]
[321479157,1712225438943,-2656.256194,0.00024876,2]
[321479158,1712225438958,-1023.42253936,0.00024876,2]
[321479159,1712225438969,-425.50779126,0.00024886,2]
[321479160,1712225438981,-1976.83585631,0.0002489,2]
[321479161,1712225438993,-561.27710634,0.00024898,2]
[321479162,1712225439005,-500.0,0.00024898,2]
[321479163,1712225439017,-150.0,0.00024898,2]
[321479164,1712225439029,-295.47470357,0.00024898,2]
[321479165,1712225439042,-155.54718939,0.00024898,2]
[321479166,1712225439054,-518.42758165,0.00024898,2]
[321479167,1712225439066,-208.00774558,0.00024898,2]
[321479168,1712225439078,-5345.29887043,0.00024898,2]
[321479169,1712225439098,-3723.77540468,0.00024898,2]
[321479170,1712225439184,-464.96853055,0.00024898,2]
[321479171,1712225439200,-9020.38534514,0.00024898,2]
[321479172,1712225439219,-4710.43501959,0.00024898,2]
[321479173,1712225439235,-5952.22384423,0.00024898,2]
[321479174,1712225439250,-155.62259849,0.00024898,2]
[321479175,1712225439267,-155.46345317,0.00024898,2]
[321479176,1712225439281,-1888.30959056,0.00024898,2]
[321479177,1712225439296,-2171.04258502,0.00024898,2]
[321479178,1712225439313,-5525.22554939,0.00024898,2]
[321479179,1712225439326,-669.94916933,0.00024898,2]
[321479180,1712225439339,-4402.48722635,0.00024899,2]
[321479181,1712225439353,-14272.47657562,0.000249,2]
[321479182,1712225439367,-780.47958208,0.000249,2]
[321479183,1712225439383,-1000.0,0.000249,2]
[321479184,1712225439397,-2173.2888,0.000249,2]
[321479185,1712225439411,-782.3966,0.000249,2]
[321479186,1712225439425,-727.2416,0.000249,2]
[321479187,1712225439438,-833.54119719,0.000249,2]
[321479188,1712225439451,-72121.83080968,0.000249,2]
[321479189,1712225439464,-34579.1734596,0.000249,2]
[321479190,1712225439476,-2500.0,0.000249,2]
[321479191,1712225439489,-7500.0,0.000249,2]
[321479192,1712225439503,-687.22531066,0.000249,2]
[321479193,1712225439516,-7424.6358,0.000249,2]
[321479194,1712225439531,-832.01,0.000249,2]
[321479195,1712225439544,-215.34479663,0.00024999,2]
[321479196,1712225439558,-11897775.91511162,0.00025,2]
[321479197,1712225439628,-3045.14722634,0.00025,2]
[321479219,1712225440472,-375.34803314,0.00024898,2]
[321479220,1712225440485,-155.0,0.00024898,2]
[321479221,1712225440498,-1383.89078165,0.00024898,2]
[321479222,1712225440509,-1412.2084172,0.00025,2]
[321479223,1712225440524,-1042.50774943,0.00025,2]
[321479235,1712225443368,-487.77724172,0.00024898,2]
[321479236,1712225443378,-30441.21497451,0.00025,2]
[321479237,1712225443393,-1118.76994318,0.00025,2]
[321479238,1712225443409,-10866.34610253,0.00025,2]
[321479239,1712225443420,-46736.65904972,0.00025,2]
[321479240,1712225443628,-101112.31433758,0.00025,2]
[321479241,1712225443640,-2734.73578413,0.00025,2]
[321479248,1712225446191,-152557.04297013,0.00025,2]
[321479249,1712225446251,-1377.65584999,0.00025,2]
[321479262,1712225651127,297.05246343,0.00029971,90]
[321479263,1712225684634,25000.0,0.00029,10]
[321479264,1712225745626,25000.0,0.00029,10]
[321479265,1712225827284,-800.0,0.00025,3]
[321479266,1712225869035,-844.34598028,0.00024631,2]
[321479267,1712225869057,-155.0,0.00024632,2]
[321479268,1712225869078,-2986.23259945,0.00024633,2]
[321479269,1712225869100,-312.4020961,0.00024633,2]
[321479270,1712225869122,-2966.11654915,0.00024635,2]
[321479271,1712225869142,-883.68141318,0.00024635,2]
[321479272,1712225869163,-249.9491637,0.00024649,2]
[321479273,1712225869184,-163.54816016,0.00024798,2]
[321479274,1712225869205,-163.54816014,0.00024849,2]
[321479275,1712225869227,-911.27049372,0.0002489,2]
[321479276,1712225869249,-319.45413673,0.00024898,2]
[321479277,1712225869271,-4204.80918451,0.00024898,2]
[321479278,1712225869292,-192.51457032,0.00024898,2]
[321479279,1712225869313,-405.43595883,0.00024898,2]
[321479280,1712225869334,-157.19113886,0.00024898,2]
[321479281,1712225869355,-669.11363265,0.00024898,2]
[321479282,1712225869379,-278.75407301,0.00024898,2]
[321479283,1712225869400,-869.25570646,0.00024898,2]
[321479284,1712225869422,-157.2830093,0.00024898,2]
[321479285,1712225869444,-673.33,0.00024898,2]
[321479286,1712225869466,-708.74191465,0.00024899,2]
[321479287,1712225869488,-1000.0,0.000249,2]
[321479288,1712225869511,-7500.0,0.000249,2]
[321479289,1712225869534,-163.54816014,0.000249,2]
[321479290,1712225869556,-186.69469356,0.000249,2]
[321479291,1712225869577,-499.99,0.000249,2]
[321479292,1712225869598,-2353.89,0.000249,2]
[321479293,1712225869619,-6263.69,0.000249,2]
[321479294,1712225869642,-8701.7092051,0.000249,2]
[321479295,1712225897146,25000.0,0.00029,10]
[321479296,1712225911865,-844.34598028,0.00024898,2]
[321479297,1712225911885,-427.62955432,0.00024898,2]
[321479298,1712225911906,-7278.0244654,0.00024898,2]
[321479299,1712226055968,25000.0,0.00029,10]
[321479300,1712226061339,1000.0,0.00029,120]